Cogmind - Beta 9.2 --- EXPLORER MODE // 2019.11.24 @ 00:50:34 Player: sideriver81 Result: Destroyed by XK-9DP(z) with Zionite Laser-S Performance ------------- Evolutions (1) 500 Regions Visited (6) 1200 Robots Destroyed (34) 170 Value Destroyed (805) 805 Prototype IDs (21) 420 Alien Tech Used (0) 0 Bonus (1567) 1567 TOTAL SCORE: 4662 Bonus ------- Follower Combat Kills 14 Met Imprinter 300 Was Imprinted 300 Destroyed Z-Imprinter 1000 Friendly Fire -47 Cogmind --------- Core Integrity 0/400 Matter 295/300 Energy 100/100 System Corruption 0% Temperature Cool (73) Movement Hovering (130) Ox1 Location -7/Deep Caves Parts ------- > --- POWER (1) -------- Zionite Light DM Reactor > --- PROPULSION (4) --- Zionite Glidesys I > --- UTILITY (3) ------ Medium Storage Unit Spectral Analyzer Makeshift Armor Plating > --- WEAPON (2) ------- Makeshift Spear > --- INVENTORY (8) ---- Zionite Light DM Reactor Experimental Heat Sink Zionite Biocell (1000) Makeshift Transmission Jammer Zionite Laser-M Rocket Launcher Makeshift Spear Peak State ------------ > --- POWER ------------ Zionite Light DM Reactor > --- PROPULSION ------- Zionite Glidesys I Zionite Glidesys I Zionite Glidesys II Zionite Glidesys II > --- UTILITY ---------- Medium Storage Unit Spectral Analyzer Makeshift Armor Plating > --- WEAPON ----------- Zionite Laser-M Zionite Laser-M > --- INVENTORY -------- Makeshift Power Source Experimental Heat Sink Makeshift Transmission Jammer Zionite Weapon Casing Makeshift Armor Plating Rocket Launcher Makeshift Spear Makeshift Spear [Rating: 69] Favorites ----------- Power Light Nuclear Core Engine Ion Engine Power Core Light Nuclear Core Reactor Zionite Light DM Reactor Propulsion Aluminum Leg Leg Aluminum Leg Hover Unit Zionite Glidesys I Utility Medium Storage Unit Device Heat Sink Storage Medium Storage Unit Processor Spectral Analyzer Protection Makeshift Armor Plating Weapon Bore Cannon Energy Gun EM Pulse Gun Ballistic Cannon Bore Cannon Special Weapon Mining Laser Slashing Weapon Mining Claw Piercing Weapon Makeshift Spear Build | -11 -10 -10 -9 -9 -7 -7 ------- Run | Scr Mat Min Mat Min Zio Dee Slots Evolved 3 | . 1 . 2 . . . Power . | . . . . . . . Propulsion 2 | . 1 . 1 . . . Utility 1 | . . . 1 . . . Weapon . | . . . . . . . Parts Attached 42 | . 1 7 6 1 5 22 Power 4 | . . . 1 . 1 2 Engine . | . . . . . . . Core 2 | . . . 1 . 1 . Reactor 2 | . . . . . . 2 Propulsion 15 | . 1 3 3 . . 8 Treads . | . . . . . . . Leg 9 | . 1 3 3 . . 2 Wheel . | . . . . . . . Hover 6 | . . . . . . 6 Flight . | . . . . . . . Utility 15 | . . 1 2 . 4 8 Device 2 | . . . 1 . . 1 Storage 1 | . . . . . . 1 Processor 3 | . . . . . 3 . Hackware . | . . . . . . . Protection 9 | . . 1 1 . 1 6 Artifact . | . . . . . . . Weapon 8 | . . 3 . 1 . 4 Energy Gun 3 | . . . . 1 . 2 Energy Cannon . | . . . . . . . Ballistic Gun . | . . . . . . . Ballistic Cannon 1 | . . 1 . . . . Launcher . | . . . . . . . Special Weapon 1 | . . 1 . . . . Impact Weapon . | . . . . . . . Slashing Weapon 1 | . . 1 . . . . Piercing Weapon 2 | . . . . . . 2 Special Melee Weapon . | . . . . . . . Unidentified Prototypes 10 | . . . . . 2 8 Parts Lost 19 | . . 2 2 . . 15 Power 1 | . . . . . . 1 Propulsion 9 | . . . . . . 9 Utility 3 | . . . 1 . . 2 Weapon 6 | . . 2 1 . . 3 Highest Loss Streak 10 | . . 2 1 . . 10 Average Slot Usage (%) 93 | . 90 89 87 92 99 91 Engine 3 | . 12 12 1 . . . Core 6 | . . . 8 10 10 3 Leg 36 | . 28 37 39 40 40 18 Hover 1 | . . . . . . 16 Device 3 | . . . 2 10 5 . Storage 10 | . 12 12 10 10 10 10 Processor 2 | . . . . . 4 10 Protection 10 | . 12 12 13 10 10 8 Energy Gun 8 | . 25 5 . 2 10 7 Ballistic Cannon 7 | . . 2 10 10 10 4 Naked Turns . | . . . . . . . Heaviest Build 29 | 20 20 27 27 26 29 29 Greatest Support 100 | 20 30 30 40 40 40 100 Greatest Overweight (x) 4 | . . . . . . 4 Average Overweight (x) . | . . . . . . . Largest Inventory Capacity 8 | . 8 8 8 8 8 8 Average Capacity 8 | . 8 8 8 8 8 8 Most Carried 8 | . 8 8 8 8 8 8 Average Carried 7 | . 7 6 6 7 7 7 Final Capacity 8 | 8 8 8 8 8 8 8 Final Carried 8 | 7 8 6 8 8 8 7 Class Distribution -------------------- 43% | Scavenger-Mutant 30% | Mutant 25% | Messiah-Mutant Dominant Class ---------------- Mutant | -10/Materials Mutant | -10/Mines Scavenger-Mutant | -9/Materials Scavenger-Mutant | -9/Mines Messiah-Mutant | -7/Zion Scavenger-Mutant | -7/Deep Caves Resources | -11 -10 -10 -9 -9 -7 -7 ----------- Run | Scr Mat Min Mat Min Zio Dee Matter Collected 984 | 200 10 70 356 79 60 209 Remotely . | . . . . . . . Salvage Created 1162 | . 153 45 630 66 . 268 Parts 77 | . 13 . 38 5 . 21 Haulers Intercepted 4 | . . . 4 . . . Recyclers Shooed . | . . . . . . . Parts Field Recycled . | . . . . . . . Retrieved Matter . | . . . . . . . Parts Self-Destructed . | . . . . . . . Prevented . | . . . . . . . Kills | -11 -10 -10 -9 -9 -7 -7 ------- Run | Scr Mat Min Mat Min Zio Dee Combat Hostiles Destroyed 26 | . 4 4 12 2 . 4 Melee 4 | . . . . . . 4 Guns 6 | . 4 2 . . . . Cannons 14 | . . . 12 2 . . AOE 2 | . . 2 . . . . Classes Destroyed 9 | . 3 1 4 . . 1 Builder 1 | . . . 1 . . . Hauler 4 | . . . 4 . . . Recycler 1 | . . . 1 . . . Watcher 2 | . 1 . 1 . . . Swarmer 4 | . 2 . 2 . . . Grunt 12 | . 2 . 8 2 . . Sentry 2 | . . . 2 . . . Z-Light 3 | . . . . . . 3 Assembled 4 | . . 4 . . . . Best Kill Streak 8 | . 3 2 8 2 . 3 Combat Bots Only 4 | . 2 2 4 2 . 3 Max Kills in Single Turn 2 | . 1 2 1 1 . 1 Gunslinging . | . . . . . . . Exploded 2 | . . 2 . . . . Melee 1 | . . . . . . 1 Uniques/NPCs Destroyed 1 | . . . . . . 1 Z-Imprinter (-7/Deep Caves) Combat | -11 -10 -10 -9 -9 -7 -7 -------- Run | Scr Mat Min Mat Min Zio Dee Damage Taken 2611 | . 103 443 216 53 . 1796 Core 480 | . 10 69 36 17 . 348 Absorbed by Shields . | . . . . . . . Core Remaining (%) 84 | 100 . 68 . . . . Volleys Fired 82 | . 12 8 51 4 . 7 Largest 2 | . 2 2 1 1 . 2 Hottest 97 | . 90 90 57 57 . 97 Shots Fired 108 | . 24 16 51 4 . 13 Gun 46 | . 24 16 . . . 6 Cannon 62 | . . . 51 4 . 7 Launcher . | . . . . . . . Special . | . . . . . . . Kinetic 62 | . . . 51 4 . 7 Thermal 20 | . 12 8 . . . . Explosive . | . . . . . . . Electromagnetic 26 | . 12 8 . . . 6 Robot Hit Streak 15 | . 13 6 15 8 . 2 Robot Miss Streak 5 | . 1 1 5 . . 4 Penetration Max 1 | . . . 1 . . . Secondary Targets 1 | . 1 . . . . . Max Gunslinging Chain 1 | . 1 . . . . . Shots Hit Robots 93 | . 18 11 37 4 . 23 Core Hits 49 | . 7 9 20 3 . 10 Critical Hits 37 | . . . 34 3 . . Critical Kills 15 | . . . 13 2 . . Critical Parts Destroyed 22 | . . . 21 1 . . Melee Attacks 20 | . . . . . . 20 Impact . | . . . . . . . Slashing . | . . . . . . . Piercing 20 | . . . . . . 20 Sneak Attacks . | . . . . . . . Combat Hostiles . | . . . . . . . Follow-up Attacks . | . . . . . . . Damage Inflicted 2242 | . 202 250 1058 103 . 629 Guns 347 | . 202 116 . . . 29 Cannons 1225 | . . . 1058 103 . 64 Explosions 134 | . . 134 . . . . Melee 536 | . . . . . . 536 Ramming . | . . . . . . . Kinetic 1225 | . . . 1058 103 . 64 Thermal 114 | . 77 37 . . . . Explosive 134 | . . 134 . . . . Electromagnetic 233 | . 125 79 . . . 29 Impact . | . . . . . . . Slashing . | . . . . . . . Piercing 536 | . . . . . . 536 Highest Corruption . | . . . . . . . Average Corruption . | . . . . . . . Corruption Purged . | . . . . . . . Overload Shots . | . . . . . . . Overflow Damage 20 | . . . 11 . . 9 Projectiles 11 | . . . 11 . . . Explosions . | . . . . . . . Melee 9 | . . . . . . 9 Knockbacks 16 | . . . 13 1 . 2 Impact . | . . . . . . . Kinetic 14 | . . . 11 1 . 2 Secondary 2 | . . . 2 . . . Self-Inflicted Damage 4 | . . 4 . . . . Shots 1 | . . 1 . . . . Rammed . | . . . . . . . Targets Rammed . | . . . . . . . Kicked . | . . . . . . . Crushed . | . . . . . . . Highest Temperature 415 | . 234 195 247 9 . 415 Average Temperature 104 | . 117 75 79 6 . 149 Received Heat Transfer 1289 | . 51 155 186 51 . 846 Effects 5 | . . . . . . 5 Shutdowns 1 | . . . . . . 1 Energy Bleed 1 | . . . . . . 1 Interference 2 | . . . . . . 2 Matter Decay 1 | . . . . . . 1 Siege Activations . | . . . . . . . Robots Corrupted . | . . . . . . . Combat Hostiles . | . . . . . . . Parts Fried 1 | . 1 . . . . . Impact Corruptions . | . . . . . . . Robots Melted . | . . . . . . . Combat Hostiles . | . . . . . . . Parts Melted 2 | . 2 . . . . . Heat Transferred 333 | . 222 111 . . . . Parts Sabotaged . | . . . . . . . Parts Stolen . | . . . . . . . Parts Stripped . | . . . . . . . Power Chain Reactions . | . . . . . . . Missiles Intercepted . | . . . . . . . Alert | -11 -10 -10 -9 -9 -7 -7 ------- Run | Scr Mat Min Mat Min Zio Dee Peak Influence 370 | . 189 81 370 129 . . Average Influence 102 | . 99 45 162 103 . . Maximum Alert Level 1 | . . . 1 . . . Low Security (%) 88 | . 100 100 58 100 . . Level 1 11 | . . . 41 . . . Level 2 . | . . . . . . . Level 3 . | . . . . . . . Level 4 . | . . . . . . . Level 5 . | . . . . . . . High Security . | . . . . . . . Max Security . | . . . . . . . Squads Dispatched 1 | . . . 1 . . . Investigation . | . . . . . . . Extermination . | . . . . . . . Reinforcement 1 | . . . 1 . . . Assault . | . . . . . . . Garrison . | . . . . . . . Intercept . | . . . . . . . Construction Impeded . | . . . . . . . Haulers Reinforced . | . . . . . . . Stealth | -11 -10 -10 -9 -9 -7 -7 --------- Run | Scr Mat Min Mat Min Zio Dee Distress Signals 4 | . . 2 2 . . . Communications Jammed . | . . . . . . . Distress Signals . | . . . . . . . Times Spotted 65 | . 8 18 29 4 . 6 Peak Tracking Total 7 | . 3 7 5 2 . 3 Tactical Retreats 12 | . 1 6 5 . . . Traps | -11 -10 -10 -9 -9 -7 -7 ------- Run | Scr Mat Min Mat Min Zio Dee Traps Triggered 1 | . . . 1 . . . Indirectly . | . . . . . . . Trap Hack Attempts . | . . . . . . . Triggered . | . . . . . . . Disarmed . | . . . . . . . Reprogrammed . | . . . . . . . Reused 2 | . . 2 . . . . Traps Extracted . | . . . . . . . Installed 2 | . . 2 . . . . Triggered . | . . . . . . . Machines | -11 -10 -10 -9 -9 -7 -7 ---------- Run | Scr Mat Min Mat Min Zio Dee Machines Disabled . | . . . . . . . Max in Single Turn . | . . . . . . . Machines Sabotaged . | . . . . . . . Garrisons Compromised . | . . . . . . . Overloaded Fab Kills . | . . . . . . . Fab Network Shutdowns . | . . . . . . . Hacking | -11 -10 -10 -9 -9 -7 -7 --------- Run | Scr Mat Min Mat Min Zio Dee Machines Accessed 8 | . 4 . 4 . . . Terminals 8 | . 4 . 4 . . . Fabricators . | . . . . . . . Repair Stations . | . . . . . . . Recycling Units . | . . . . . . . Scanalyzers . | . . . . . . . Garrison Access . | . . . . . . . Total Hacks 26 | . 13 . 13 . . . Successful 19 | . 9 . 10 . . . Failed 7 | . 4 . 3 . . . Catastrophic 1 | . 1 . . . . . Database Lockouts . | . . . . . . . Manual 19 | . 7 . 8 . 4 . Terminals 26 | . 13 . 13 . . . Fabricators . | . . . . . . . Repair Stations . | . . . . . . . Recycling Units . | . . . . . . . Scanalyzers . | . . . . . . . Garrison Access . | . . . . . . . Terminal Hacks 16 | . 8 . 8 . . . Robot Analysis 2 | . 1 . 1 . . . Prototype ID Bank 8 | . 4 . 4 . . . Emergency Access Points 1 | . . . 1 . . . Alert Level 1 | . . . 1 . . . Locate Traps 4 | . 3 . 1 . . . Fabricator Hacks . | . . . . . . . Repair Station Hacks . | . . . . . . . Recycling Unit Hacks . | . . . . . . . Scanalyzer . | . . . . . . . Garrison Access Hacks . | . . . . . . . Unauthorized Hacks 6 | . 2 . 4 . . . Terminals 3 | . 1 . 2 . . . Assimilate 1 | . . . 1 . . . Botnet 2 | . 1 . 1 . . . Fabricators . | . . . . . . . Repair Stations . | . . . . . . . Recycling Units . | . . . . . . . Scanalyzers . | . . . . . . . Garrison Access . | . . . . . . . Data Cores Recovered . | . . . . . . . Used . | . . . . . . . Hacking Detections 7 | . 4 . 3 . . . Full Trace Events . | . . . . . . . Feedback Events . | . . . . . . . Feedback Blocked . | . . . . . . . Robot Schematics Acquired . | . . . . . . . Robots Built . | . . . . . . . Matter . | . . . . . . . Time . | . . . . . . . Total Robot Build Rating . | . . . . . . . Part Schematics Acquired . | . . . . . . . Parts Built . | . . . . . . . Matter . | . . . . . . . Time . | . . . . . . . Total Part Build Rating . | . . . . . . . Parts Repaired . | . . . . . . . Time . | . . . . . . . Parts Recycled . | . . . . . . . Recycled Matter . | . . . . . . . Retrieved Matter . | . . . . . . . Retrieved Components . | . . . . . . . Parts Scanalyzed . | . . . . . . . Part Schematics Acquired . | . . . . . . . Parts Damaged . | . . . . . . . Bothacking | -11 -10 -10 -9 -9 -7 -7 ------------ Run | Scr Mat Min Mat Min Zio Dee Used RIF Installer . | . . . . . . . Robots Hacked . | . . . . . . . Non-combat . | . . . . . . . Combat . | . . . . . . . Robot Hacks Applied . | . . . . . . . Relay Couplers Released . | . . . . . . . Robots Rewired . | . . . . . . . Allies Hacked . | . . . . . . . Hacks Repelled . | . . . . . . . Allies | -11 -10 -10 -9 -9 -7 -7 -------- Run | Scr Mat Min Mat Min Zio Dee Total Allies 11 | . . . 1 3 7 . Largest Group 11 | . . . 1 4 11 11 Highest-Rated Group 283 | . . . 10 50 283 283 Highest-Rated Ally 39 | . . . 10 16 39 39 Total Orders . | . . . . . . . Ally Attacks 32 | . . . . 5 . 27 Total Damage 414 | . . . . 75 . 339 Kills 2 | . . . . 2 . . Allies Corrupted . | . . . . . . . Allies Melted . | . . . . . . . Intel | -11 -10 -10 -9 -9 -7 -7 ------- Run | Scr Mat Min Mat Min Zio Dee Robot Analysis Total 2 | . 1 . 1 . . . Derelict Logs Recovered 4 | . . 1 . 2 1 . Drone Launches . | . . . . . . . Drone Recoveries . | . . . . . . . Exploration | -11 -10 -10 -9 -9 -7 -7 ------------- Run | Scr Mat Min Mat Min Zio Dee Turns Passed 3446 | . 397 542 519 358 1297 333 Spaces Moved 2608 | 1 278 414 303 252 1056 304 Core 1 | . . . . . . 1 Treads . | . . . . . . . Legs 2410 | 1 278 414 303 252 1056 106 Wheels . | . . . . . . . Hover 197 | . . . . . . 197 Flight . | . . . . . . . Fastest Speed 48 | 120 120 120 120 120 120 48 Average Speed 114 | 120 120 120 120 120 120 75 Slowest Speed 250 | 120 120 120 120 120 120 250 Overloaded Moves . | . . . . . . . Propulsion Burnouts . | . . . . . . . Robots Hopped . | . . . . . . . Cave-ins Triggered . | . . . . . . . Exploration Rate (%) 47 | 2 42 71 32 49 89 48 Regions Visited 6 Branch Regions 4 Pre-discovered Areas . | . . . . . . . Known Exits Taken 5 | 1 1 1 1 . 1 . Unknown Exits Taken 1 | . . . . 1 . . Scrap Searched 3 | . . 1 . . 2 . Spaces Dug . | . . . . . . . Terrain Destroyed 45 | . . 18 23 2 . 2 Melee . | . . . . . . . Projectile 27 | . . . 23 2 . 2 AOE 18 | . . 18 . . . . Actions | -11 -10 -10 -9 -9 -7 -7 --------- Run | Scr Mat Min Mat Min Zio Dee Total 2931 | . 319 443 406 303 1089 371 Wait 128 | . 20 4 41 46 12 5 Move 2602 | . 277 413 302 251 1055 304 Hop . | . . . . . . . Pick Up 22 | . 5 2 3 1 7 4 Fast Attach 21 | . 1 3 3 . 3 11 Attach 7 | . . . 1 1 1 4 Detach . | . . . . . . . Swap 14 | . . 4 2 . 1 7 Drop 33 | . 4 7 3 . 10 9 Fire 82 | . 12 8 51 4 . 7 Melee 20 | . . . . . . 20 Ram . | . . . . . . . Kick . | . . . . . . . Crush . | . . . . . . . Escape Stasis . | . . . . . . . Rewire . | . . . . . . . Trap 2 | . . 2 . . . . Miscellaneous . | . . . . . . . Route ------- -11/Scrapyard -10/Materials (discovered 2 exits: *Mat / *Min) -10/Mines -9/Materials (discovered 3 exits: *Mat x2 / *Min) -9/Mines (discovered 3 exits: *Mat x2 / *Zio) -7/Zion (discovered 2 exits: *Dee / *Pro) -7/Deep Caves History --------- Turn | Location | Event 1 | -11/Scrapyard | Identified exit to Materials 1 | -11/Scrapyard | Discovered exit to Materials (range 0) 1 | -11/Scrapyard | Entered Materials 1 | -10/Materials | Evolved 1 slot: Propulsion x1 140 | -10/Materials | Identified exit to Materials 140 | -10/Materials | Discovered exit to Materials (range 8) 329 | -10/Materials | Build established: Mutant 385 | -10/Materials | Identified exit to Mines 385 | -10/Materials | Discovered exit to Mines (range 12) 398 | -10/Materials | Entered Mines 399 | -10/Mines | Assembled infested the area 404 | -10/Mines | Assisted by a Guerilla fighting off Assembled 422 | -10/Mines | Met a Derelict bent on vengeance 472 | -10/Mines | Found a hidden stash of uninstalled traps 585 | -10/Mines | Learned 4 Materials zone layouts 855 | -10/Mines | Discovered exit to Materials (range 12) 940 | -10/Mines | Entered Materials 940 | -9/Materials | Evolved 2 slots: Propulsion x1, Utility x1 941 | -9/Materials | Identified exit to Materials 1210 | -9/Materials | Discovered exit to Materials (range 16) 1335 | -9/Materials | Build established: Scavenger-Mutant 1449 | -9/Materials | Identified exit to Mines 1449 | -9/Materials | Discovered exit to Mines (range 7) 1459 | -9/Materials | Entered Mines 1459 | -9/Mines | Accompanied by 1 ally 1465 | -9/Mines | Assisted by bots powering up and referring to "LRC-V3" 1503 | -9/Mines | Discovered exit to Materials (range 7) 1573 | -9/Mines | Discovered exit to Materials (range 7) 1713 | -9/Mines | Received a Rocket Launcher from a helpful Derelict 1799 | -9/Mines | A Derelict revealed a hidden shortcut to a safe place 1799 | -9/Mines | Learned Materials trap positions 1803 | -9/Mines | Learned Materials security intel 1817 | -9/Mines | Entered Zion 1817 | -7/Zion | Accompanied by 4 allies 1866 | -7/Zion | Acquired unknown access codes intercepted by a Zionite 1896 | -7/Zion | Identified exit to Proximity Caves 1896 | -7/Zion | Discovered exit to Proximity Caves (range 8) 2189 | -7/Zion | Identified exit to Deep Caves 2315 | -7/Zion | Imprinted 2318 | -7/Zion | Declared Zion's savior 2554 | -7/Zion | Found Prototype Processor 2554 | -7/Zion | Identified Exp. Targeting Computer 2558 | -7/Zion | Found Prototype Processor 2558 | -7/Zion | Identified Spectral Analyzer 2562 | -7/Zion | Found Spectral Analyzer 2621 | -7/Zion | Build established: Messiah-Mutant 2718 | -7/Zion | Gained Derelict followers 3078 | -7/Zion | Opened final containment barrier to the Deep Caves 3098 | -7/Zion | Saw the warning signs outside the Deep Caves entrance 3114 | -7/Zion | Entered Deep Caves 3114 | -7/Deep Caves | Accompanied by 11 allies 3206 | -7/Deep Caves | Attacked by Z-Imprinter 3282 | -7/Deep Caves | Core integrity fell below 50% 3302 | -7/Deep Caves | Destroyed Z-Imprinter 3322 | -7/Deep Caves | Found Prototype Protection 3322 | -7/Deep Caves | Identified Zio. Weapon Casing 3324 | -7/Deep Caves | Lost 10 parts (1p6n1u2w) 3436 | -7/Deep Caves | Core integrity fell below 20% 3447 | -7/Deep Caves | Destroyed by XK-9DP(z) with Zionite Laser-S Last Messages --------------- 03342_ Extracted 6 energy. 03343_ Extracted 9 energy. 03344_ Extracted 1 energy. 03345_ Dropped Zio. Weapon Casing. 03346_ Acquired Zio. Biocell. 03348_ Acquired 40 matter. 03374_ 6B-IP7(o) is busy at the terminal. 03387_ Dropped Zio. Glidesys I. 03390_ Dropped Mak. Armor Plating. 03392_ Dropped Mak. Power Source. 03392_ Acquired Zio. Light DM Reactor. 03408_ GV-R2M(o) is busy at the terminal. 03432_ Zio. Glidesys I destroyed. 03434_ P5-M4Y(z) destroyed. 03437_ Zio. Laser-M destroyed. 03439_ Zio. Glidesys II destroyed. 03443_ Destroyed Zio. Glidesys I. 03443_ Zio. Light Carapace destroyed. 03446_ Destroyed Zio. Glidesys I. 03447_ Zio. Glidesys II destroyed. Map ----- +----------------------------------------------------+ | ??????????? ""??""""" " " | | ???????????? "??"""""" | | ???????????? ???""""" | | ????????????? "??"""""" | | ??????????????? "???""""" | | ??????????????? "??"""""""" | | ????????????? """"""""""""" | | ??????????? """""" | | ??????????# """""" """ | | ??????????# """""" """"" | | ???????????# """""" """"""" | | ???????# ??# """"" """"""" | | ??????? ?# """" """"""" | | ??????# # """" """"" | | ??????# """" """ | | ?????? """" | | ????? """"""""""" | | ????? """"""""" | | ????? | | ?????# | | ?????# | | ???????# | | ???????# | | ????????# z | | ????????# | | ????????# ###z@=### ### | | ???????????????????????#[%!;### ##?? | | ???????????????????????######?### #####??? | | ????????????????????????????????###########??????? | | ?????????????????????????????????????????????????? | | | | | | | | | | | | | | | | | | | | | | | | | | | | | | | | | | | | | | | | | +----------------------------------------------------+ Best States ------------- Heat Dissipation 54 Energy Generation 27 Energy Capacity 1100 Matter Stores 300 Matter Capacity 300 Sight Range 24 Terrain Scan Density 10 Armor Coverage 400 Resistance: KI 35 Resistance: TH 35 Resistance: EX 35 Resistance: EM 35 Resistance: I 35 Resistance: S 35 Resistance: P 35 Utility Shielding 33 Evasion (%) 55 Item Schematics ----------------- None Robot Schematics ------------------ None Fabricated ------------ Nothing Alien Tech Used ----------------- None Achievements -------------- None Challenges ------------ None Game ------ Seed HelicalVariableRecalibrator Manual? 0 Play Time 00:32:15 Cumulative 158.8 hours Start 2019.11.24 @ 00:18:09 End 2019.11.24 @ 00:50:34 Sessions 1 Manual Loads 0 Difficulty Explorer Special Mode None Game No. 57 Rogue 17 Adventurer 32 Explorer 8 Win Type - Total 13 Types 7/0/4/2/0/0/0 Lore% 68 Gallery% 80 Achievement% 66 Wizard Run 0 Options --------- ASCII 0 Keyboard 0 Movement Numpad Keybinds 0 Fullscreen 0 Font 20/Terminus Map View 76x50 Tactical HUD 1 Map Filters NONE Filters NONE Steam 1 RUN: b7367201-b5b6-4728-abae-a9d31d13806d